fUST/lending_fUST_20250930
["ID","MTS","AMOUNT","RATE_DAILY","PERIOD"]
[388469663,1759181433118,-535.24,0.00021932,2]
[388469664,1759181433128,-480.0,0.00021932,2]
[388469665,1759181433138,-2340.77,0.00021932,2]
[388469666,1759181433150,-480.0,0.00021932,2]
[388469667,1759181433160,-988.38,0.00021932,2]
[388469668,1759181433170,-989.95,0.00021932,2]
[388469669,1759181433180,-480.0,0.00021932,2]
[388469670,1759181433191,-480.0,0.00021932,2]
[388469671,1759181433201,-480.0,0.00021932,2]
[388469672,1759181433212,-480.0,0.00021932,2]
[388469673,1759181433221,-480.0,0.00021932,2]
[388469674,1759181433231,-480.0,0.00021932,2]
[388469675,1759181433240,-2233.75,0.00021932,2]
[388469676,1759181433250,-480.0,0.00021932,2]
[388469677,1759181433260,-480.0,0.00021932,2]
[388469678,1759181433269,-480.0,0.00021932,2]
[388469679,1759181433280,-1006.72,0.00021932,2]
[388469680,1759181433290,-577.46,0.00021932,2]
[388469681,1759181433300,-480.0,0.00021932,2]
[388469682,1759181433310,-480.0,0.00021932,2]
[388469705,1759181433676,-519.14,0.00021932,2]
[388469706,1759181433688,-257.46095742,0.00021932,2]
[388469707,1759181433698,-480.0,0.00021932,2]
[388469708,1759181433707,-480.0,0.00021932,2]
[388469709,1759181433716,-480.0,0.00021932,2]
[388469710,1759181433726,-480.0,0.00021932,2]
[388469711,1759181433735,-480.0,0.00021932,2]
[388469712,1759181433744,-480.0,0.00021932,2]
[388469713,1759181433753,-480.0,0.00021932,2]
[388469714,1759181433763,-480.0,0.00021932,2]
[388469715,1759181433773,-244.36375245,0.00021932,2]
[388469717,1759181437911,-253.23312701,0.0002192,2]
[388469718,1759181437924,-226.76687299,0.0002192,2]
[388469719,1759181437934,-289.82430704,0.00021921,2]
[388469720,1759181437945,-210.17569296,0.00021921,2]
[388469721,1759181437955,-500.0,0.00021921,2]
[388469722,1759181437964,-500.0,0.00021921,2]
[388469723,1759181437974,-500.0,0.00021921,2]
[388469724,1759181437983,-198.82245676,0.00021921,2]
[388469725,1759181437994,-450.45204947,0.00021921,2]
[388469726,1759181438009,-174.30806755,0.00021931,2]
[388469727,1759181438019,-500.0,0.00021931,2]
[388469728,1759181438028,-500.0,0.00021931,2]
[388469729,1759181438039,-270.68694589,0.00021931,2]
[388469730,1759181438049,-500.0,0.00021931,2]
[388469731,1759181438059,-331.64677889,0.00021931,2]
[388469733,1759181438069,-500.0,0.00021931,2]
[388469734,1759181438083,-500.0,0.00021931,2]
[388469735,1759181438093,-500.0,0.00021931,2]
[388469736,1759181438103,-500.0,0.00021931,2]
[388469737,1759181438113,-500.0,0.00021931,2]
[388469738,1759181438123,-500.0,0.00021931,2]
[388469739,1759181438133,-500.0,0.00021931,2]
[388469740,1759181438143,-500.0,0.00021931,2]
[388469741,1759181438153,-500.0,0.00021931,2]
[388469742,1759181438163,-500.0,0.00021931,2]
[388469743,1759181438172,-500.0,0.00021931,2]
[388469744,1759181438181,-500.0,0.00021931,2]
[388469745,1759181438191,-345.67663457,0.00021931,2]
[388469746,1759181438200,-500.0,0.00021931,2]
[388469747,1759181438210,-235.63624755,0.00021932,2]
[388469748,1759181438220,-491.6,0.00021932,2]
[388469749,1759181438229,-480.0,0.00021932,2]
[388469750,1759181438240,-589.54,0.00021932,2]
[388469751,1759181438249,-500.0,0.00021933,2]
[388469752,1759181438258,-480.0,0.00021933,2]
[388469753,1759181438267,-480.0,0.00021933,2]
[388469754,1759181438276,-534.48223388,0.00021933,2]
[388469755,1759181438286,-480.0,0.00021933,2]
[388469756,1759181438295,-480.0,0.00021933,2]
[388469757,1759181438304,-480.0,0.00021933,2]
[388469758,1759181438313,-480.0,0.00021933,2]
[388469759,1759181438323,-465.21,0.00021933,2]
[388469760,1759181438333,-480.0,0.00021933,2]
[388469761,1759181438342,-480.0,0.00021933,2]
[388469762,1759181438351,-480.0,0.00021933,2]
[388469763,1759181438361,-480.0,0.00021933,2]
[388469764,1759181438370,-480.0,0.00021933,2]
[388469765,1759181438379,-480.0,0.00021933,2]
[388469766,1759181438389,-480.0,0.00021933,2]
[388469767,1759181438399,-480.0,0.00021933,2]
[388469769,1759181438409,-281.48286705,0.00021933,2]
[388469771,1759181438419,-480.0,0.00021933,2]
[388469773,1759181438429,-480.0,0.00021933,2]
[388469775,1759181438438,-480.0,0.00021933,2]
[388469777,1759181438447,-480.0,0.00021933,2]
[388469779,1759181438456,-480.0,0.00021933,2]
[388469781,1759181438465,-480.0,0.00021933,2]
[388469782,1759181438474,-480.0,0.00021933,2]
[388469784,1759181438483,-480.0,0.00021933,2]
[388469786,1759181438492,-480.0,0.00021933,2]
[388469788,1759181438502,-480.0,0.00021933,2]
[388469790,1759181438511,-480.0,0.00021933,2]
[388469792,1759181438520,-480.0,0.00021933,2]
[388469794,1759181438529,-480.0,0.00021933,2]
[388469796,1759181438538,-500.0,0.00021933,2]
[388469797,1759181438547,-500.0,0.00021933,2]
[388469798,1759181438557,-500.0,0.00021933,2]
[388469799,1759181438566,-500.0,0.00021933,2]
[388469800,1759181438576,-500.0,0.00021933,2]
[388469801,1759181438585,-500.0,0.00021933,2]
[388469802,1759181438595,-500.0,0.00021933,2]
[388469803,1759181438604,-500.0,0.00021933,2]
[388469804,1759181438614,-500.0,0.00021933,2]
[388469805,1759181438623,-500.0,0.00021933,2]
[388469806,1759181438634,-480.0,0.00021933,2]
[388469807,1759181438647,-480.0,0.00021933,2]
[388469808,1759181438657,-480.0,0.00021933,2]
[388469809,1759181438666,-480.0,0.00021933,2]
[388469810,1759181438675,-480.0,0.00021933,2]
[388469811,1759181438684,-480.0,0.00021933,2]
[388469812,1759181438694,-480.0,0.00021933,2]
[388469813,1759181438704,-480.0,0.00021933,2]
[388469814,1759181438712,-480.0,0.00021933,2]
[388469815,1759181438722,-480.0,0.00021933,2]
[388469816,1759181438731,-480.0,0.00021933,2]
[388469817,1759181438741,-480.0,0.00021933,2]
[388469818,1759181438751,-480.0,0.00021933,2]
[388469819,1759181438760,-480.0,0.00021933,2]
[388469820,1759181438770,-480.0,0.00021933,2]
[388469821,1759181438779,-480.0,0.00021933,2]
[388469822,1759181438789,-480.0,0.00021933,2]
[388469823,1759181438798,-480.0,0.00021933,2]
[388469824,1759181438807,-480.0,0.00021933,2]
[388469825,1759181438817,-480.0,0.00021933,2]
[388469826,1759181438827,-588.22,0.00021933,2]
[388469827,1759181438837,-500.0,0.00021933,2]
[388469828,1759181438847,-480.0,0.00021933,2]
[388469829,1759181438856,-480.0,0.00021933,2]
[388469830,1759181438866,-480.0,0.00021933,2]
[388469831,1759181438875,-480.0,0.00021933,2]
[388469832,1759181438884,-480.0,0.00021933,2]
[388469833,1759181438895,-200.04910001,0.00021933,2]
[388469834,1759181438906,-480.0,0.00021933,2]
[388469835,1759181438916,-655.64,0.00021933,2]
[388469836,1759181438925,-480.0,0.00021933,2]
[388469837,1759181438935,-480.0,0.00021933,2]
[388469838,1759181438945,-480.0,0.00021933,2]
[388469839,1759181438955,-480.0,0.00021933,2]
[388469840,1759181438964,-480.0,0.00021933,2]
[388469841,1759181438975,-480.0,0.00021933,2]
[388469842,1759181438984,-480.0,0.00021933,2]
[388469843,1759181438997,-480.0,0.00021933,2]
[388469844,1759181439007,-542.65,0.00021933,2]
[388469845,1759181439016,-480.0,0.00021933,2]
[388469846,1759181439026,-480.0,0.00021933,2]
[388469847,1759181439036,-480.0,0.00021933,2]
[388469848,1759181439046,-480.0,0.00021933,2]
[388469849,1759181439056,-480.0,0.00021933,2]
[388469850,1759181439066,-480.0,0.00021933,2]
[388469851,1759181439075,-480.0,0.00021933,2]
[388469852,1759181439085,-480.0,0.00021933,2]
[388469853,1759181439095,-480.0,0.00021933,2]
[388469854,1759181439105,-480.0,0.00021933,2]
[388469855,1759181439115,-298.38384188,0.00021933,2]
[388469856,1759181439125,-480.0,0.00021933,2]
[388469857,1759181439135,-480.0,0.00021933,2]
[388469858,1759181439145,-480.0,0.00021933,2]
[388469859,1759181439155,-480.0,0.00021933,2]
[388469860,1759181439164,-480.0,0.00021933,2]
[388469861,1759181439174,-480.0,0.00021933,2]
[388469862,1759181439183,-480.0,0.00021933,2]
[388469863,1759181439193,-480.0,0.00021933,2]
[388469864,1759181439203,-480.0,0.00021933,2]
[388469865,1759181439213,-213.13618528,0.00021933,2]
[388469866,1759181439224,-480.0,0.00021933,2]
[388469867,1759181439234,-58537.4704461,0.00021934,2]
[388469868,1759181439380,-1587.58671605,0.00021934,2]
[388469910,1759181443010,-480.0,0.00021921,2]
[388469912,1759181443019,-962.28,0.00021921,2]
[388469914,1759181443028,-2676.94,0.00021922,2]
[388469916,1759181443038,-480.0,0.00021932,2]
[388469918,1759181443049,-158037.08401463,0.00021934,2]
[388469920,1759181443059,-500.0,0.00021973,2]
[388469922,1759181443068,-500.0,0.00021973,2]
[388469924,1759181443078,-500.0,0.00021973,2]
[388469926,1759181443088,-502.64759426,0.00021973,2]
[388469946,1759181443239,-500.0,0.00021973,2]
[388469948,1759181443249,-500.0,0.00021973,2]
[388469951,1759181443258,-500.0,0.00021973,2]
[388469953,1759181443267,-100000.0,0.0002199,2]
[388469955,1759181443275,-500.0,0.0002203,2]
[388469957,1759181443284,-1286.77,0.00022031,2]
[388469959,1759181443293,-500.0,0.00022031,2]
[388469961,1759181443302,-500.0,0.00022031,2]
[388469963,1759181443311,-500.0,0.00022032,2]
[388469965,1759181443320,-480.0,0.00022033,2]
[388469967,1759181443329,-480.0,0.00022033,2]
[388469969,1759181443338,-480.0,0.00022033,2]
[388469971,1759181443347,-480.0,0.00022033,2]
[388469973,1759181443356,-480.0,0.00022033,2]
[388469975,1759181443365,-480.0,0.00022033,2]
[388469977,1759181443374,-862.92,0.00022033,2]
[388469979,1759181443384,-1150.52,0.00022033,2]
[388469981,1759181443393,-480.0,0.00022033,2]
[388469982,1759181443403,-480.0,0.00022033,2]
[388469985,1759181443412,-480.0,0.00022033,2]
[388469986,1759181443422,-480.0,0.00022033,2]
[388469988,1759181443432,-480.0,0.00022033,2]
[388469990,1759181443441,-304.2680291,0.00022034,2]
[388469992,1759181443451,-1000.0,0.00022036,2]
[388469994,1759181443461,-1000.0,0.00022036,2]
[388469996,1759181443470,-1000.0,0.00022036,2]
[388469998,1759181443479,-1000.0,0.00022036,2]
[388470000,1759181443489,-1000.0,0.00022036,2]
[388470002,1759181443499,-1000.0,0.00022036,2]
[388470004,1759181443509,-1000.0,0.00022036,2]
[388470006,1759181443518,-1000.0,0.00022036,2]
[388470007,1759181443529,-1000.0,0.00022036,2]
[388470008,1759181443539,-1286.77,0.00022038,2]
[388470009,1759181443549,-1000.0,0.00022038,2]
[388470010,1759181443559,-1000.0,0.00022039,2]
[388470011,1759181443569,-1000.0,0.00022039,2]
[388470012,1759181443578,-1000.0,0.00022039,2]
[388470013,1759181443588,-480.0,0.00022194,2]
[388470014,1759181443598,-480.0,0.00022194,2]
[388470015,1759181443607,-480.0,0.00022195,2]
[388470016,1759181443616,-480.0,0.00022195,2]
[388470017,1759181443626,-480.0,0.00022195,2]
[388470018,1759181443635,-831.32,0.00022195,2]
[388470019,1759181443645,-480.0,0.00022195,2]
[388470020,1759181443654,-1633.91,0.00022195,2]
[388470021,1759181443664,-1635.28,0.00022195,2]
[388470022,1759181443673,-480.0,0.00022195,2]
[388470023,1759181443682,-574.17,0.00022195,2]
[388470024,1759181443692,-1196.87,0.00022195,2]
[388470025,1759181443701,-507.59,0.00022195,2]
[388470026,1759181443710,-480.0,0.00022195,2]
[388470027,1759181443720,-962.28,0.00022195,2]
[388470028,1759181443729,-480.0,0.00022196,2]
[388470029,1759181443738,-480.0,0.00022196,2]
[388470030,1759181443747,-480.0,0.00022196,2]
[388470031,1759181443757,-529.7,0.00022196,2]
[388470032,1759181443766,-480.0,0.00022196,2]
[388470033,1759181443776,-876.08,0.00022196,2]
[388470034,1759181443785,-480.0,0.00022196,2]
[388470035,1759181443795,-1004.12,0.00022196,2]
[388470036,1759181443804,-480.0,0.00022196,2]
[388470037,1759181443813,-480.0,0.00022196,2]
[388470038,1759181443823,-480.0,0.00022196,2]
[388470039,1759181443832,-714.62,0.00022196,2]
[388470040,1759181443842,-480.0,0.00022196,2]
[388470041,1759181443851,-480.0,0.00022196,2]
[388470042,1759181443860,-641.83,0.00022196,2]
[388470043,1759181443870,-480.0,0.00022196,2]
[388470044,1759181443879,-1006.19,0.00022196,2]
[388470045,1759181443888,-480.0,0.00022196,2]
[388470046,1759181443897,-480.0,0.00022196,2]
[388470047,1759181443907,-480.0,0.00022196,2]
[388470048,1759181443916,-480.0,0.00022196,2]
[388470049,1759181443926,-480.0,0.00022196,2]
[388470050,1759181443935,-571.89353867,0.00022196,2]
[388470051,1759181443945,-480.0,0.00022196,2]
[388470052,1759181443955,-480.0,0.00022196,2]
[388470053,1759181443965,-1053.07,0.00022196,2]
[388470054,1759181443975,-4093.25,0.00022196,2]
[388470055,1759181443984,-858.08,0.00022196,2]
[388470056,1759181443995,-1049.63,0.00022196,2]
[388470057,1759181444006,-494.13,0.00022196,2]
[388470058,1759181444016,-1531.77,0.00022196,2]
[388470059,1759181444026,-614.45,0.00022196,2]
[388470060,1759181444035,-536.88,0.00022196,2]
[388470061,1759181444045,-2676.94,0.00022196,2]
[388470062,1759181444054,-480.0,0.00022205,2]
[388470063,1759181444064,-480.0,0.00022205,2]
[388470064,1759181444075,-480.0,0.00022206,2]
[388470065,1759181444085,-562.52,0.00022206,2]
[388470066,1759181444094,-480.0,0.00022206,2]
[388470067,1759181444104,-480.0,0.00022206,2]
[388470068,1759181444113,-480.0,0.00022206,2]
[388470069,1759181444123,-480.0,0.00022206,2]
[388470070,1759181444132,-480.0,0.00022206,2]
[388470071,1759181444142,-615.68,0.00022206,2]
[388470072,1759181444152,-480.0,0.00022206,2]
[388470073,1759181444161,-480.0,0.00022206,2]
[388470074,1759181444170,-480.0,0.00022206,2]
[388470075,1759181444179,-480.0,0.00022206,2]
[388470076,1759181444188,-510.68,0.00022206,2]
[388470077,1759181444198,-876.91,0.00022206,2]
[388470078,1759181444207,-480.0,0.00022206,2]
[388470079,1759181444217,-480.0,0.00022206,2]
[388470080,1759181444227,-480.0,0.00022206,2]
[388470081,1759181444237,-480.0,0.00022206,2]
[388470082,1759181444247,-480.0,0.00022206,2]
[388470083,1759181444257,-480.0,0.00022206,2]
[388470084,1759181444266,-480.0,0.00022206,2]
[388470085,1759181444275,-480.0,0.00022206,2]
[388470086,1759181444285,-480.0,0.00022206,2]
[388470087,1759181444295,-480.0,0.00022206,2]
[388470088,1759181444304,-480.0,0.00022206,2]
[388470089,1759181444314,-480.0,0.00022206,2]
[388470090,1759181444324,-480.0,0.00022206,2]
[388470091,1759181444334,-480.0,0.00022206,2]
[388470092,1759181444344,-480.0,0.00022206,2]
[388470093,1759181444354,-480.0,0.00022206,2]
[388470094,1759181444363,-507.55,0.00022206,2]
[388470095,1759181444373,-480.0,0.00022206,2]
[388470096,1759181444383,-480.0,0.00022206,2]
[388470097,1759181444392,-590.19,0.00022206,2]
[388470098,1759181444401,-618.4355565,0.00022206,2]
[388470099,1759181444410,-480.0,0.00022206,2]
[388470100,1759181444420,-480.0,0.00022206,2]
[388470101,1759181444429,-1024.9,0.00022206,2]
[388470102,1759181444438,-480.0,0.00022206,2]
[388470103,1759181444447,-480.0,0.00022206,2]
[388470104,1759181444456,-480.0,0.00022206,2]
[388470105,1759181444465,-480.0,0.00022206,2]
[388470106,1759181444475,-480.0,0.00022206,2]
[388470107,1759181444484,-891.77,0.00022206,2]
[388470108,1759181444493,-480.0,0.00022206,2]
[388470109,1759181444502,-480.0,0.00022206,2]
[388470110,1759181444511,-480.0,0.00022206,2]
[388470111,1759181444520,-480.0,0.00022206,2]
[388470112,1759181444529,-773.76,0.00022206,2]
[388470113,1759181444539,-536.55,0.00022206,2]
[388470114,1759181444548,-1222.2,0.00022206,2]
[388470115,1759181444557,-480.0,0.00022206,2]
[388470116,1759181444566,-480.0,0.00022206,2]
[388470117,1759181444575,-480.0,0.00022206,2]
[388470118,1759181444584,-535.24,0.00022206,2]
[388470119,1759181444593,-2340.77,0.00022206,2]
[388470120,1759181444603,-480.0,0.00022206,2]
[388470121,1759181444612,-988.38,0.00022206,2]
[388470122,1759181444621,-989.95,0.00022206,2]
[388470123,1759181444631,-480.0,0.00022206,2]
[388470124,1759181444640,-480.0,0.00022206,2]
[388470125,1759181444649,-480.0,0.00022206,2]
[388470126,1759181444659,-480.0,0.00022206,2]
[388470127,1759181444668,-480.0,0.00022206,2]
[388470128,1759181444677,-480.0,0.00022206,2]
[388470129,1759181444687,-2233.75,0.00022206,2]
[388470130,1759181444696,-480.0,0.00022206,2]
[388470131,1759181444706,-1006.72,0.00022206,2]
[388470132,1759181444715,-577.46,0.00022206,2]
[388470133,1759181444725,-480.0,0.00022206,2]
[388470134,1759181444734,-480.0,0.00022206,2]
[388470135,1759181444744,-480.0,0.00022206,2]
[388470136,1759181444753,-480.0,0.00022206,2]
[388470137,1759181444763,-480.0,0.00022206,2]
[388470138,1759181444774,-480.0,0.00022206,2]
[388470139,1759181444783,-480.0,0.00022206,2]
[388470140,1759181444792,-540.57658608,0.00022206,2]
[388470141,1759181444802,-480.0,0.00022206,2]
[388470142,1759181444813,-480.0,0.00022206,2]
[388470143,1759181444823,-589.54,0.00022206,2]
[388470144,1759181444832,-480.0,0.00022206,2]
[388470145,1759181444842,-500.0,0.00022207,2]
[388470146,1759181444851,-480.0,0.00022207,2]
[388470147,1759181444861,-480.0,0.00022207,2]
[388470148,1759181444870,-480.0,0.00022207,2]
[388470149,1759181444880,-480.0,0.00022207,2]
[388470150,1759181444890,-480.0,0.00022207,2]
[388470151,1759181444899,-480.0,0.00022207,2]
[388470152,1759181444908,-480.0,0.00022207,2]
[388470153,1759181444919,-480.0,0.00022207,2]
[388470154,1759181444929,-480.0,0.00022207,2]
[388470155,1759181444938,-480.0,0.00022207,2]
[388470156,1759181444947,-480.0,0.00022207,2]
[388470157,1759181444957,-480.0,0.00022207,2]
[388470158,1759181444966,-480.0,0.00022207,2]
[388470159,1759181444976,-480.0,0.00022207,2]
[388470160,1759181444986,-480.0,0.00022207,2]
[388470161,1759181444996,-480.0,0.00022207,2]
[388470162,1759181445008,-480.0,0.00022207,2]
[388470163,1759181445018,-480.0,0.00022207,2]
[388470164,1759181445027,-480.0,0.00022207,2]
[388470165,1759181445036,-480.0,0.00022207,2]
[388470166,1759181445046,-480.0,0.00022207,2]
[388470167,1759181445057,-480.0,0.00022207,2]
[388470168,1759181445066,-480.0,0.00022207,2]
[388470169,1759181445079,-480.0,0.00022207,2]
[388470170,1759181445088,-480.0,0.00022207,2]
[388470171,1759181445097,-480.0,0.00022207,2]
[388470172,1759181445107,-480.0,0.00022207,2]
[388470173,1759181445116,-480.0,0.00022207,2]
[388470174,1759181445126,-563.63729053,0.00022207,2]
[388470175,1759181445135,-480.0,0.00022207,2]
[388470176,1759181445144,-480.0,0.00022207,2]
[388470177,1759181445154,-480.0,0.00022207,2]
[388470178,1759181445164,-480.0,0.00022207,2]
[388470179,1759181445173,-480.0,0.00022207,2]
[388470180,1759181445182,-480.0,0.00022207,2]
[388470181,1759181445191,-480.0,0.00022207,2]
[388470182,1759181445200,-480.0,0.00022207,2]
[388470183,1759181445210,-480.0,0.00022207,2]
[388470184,1759181445219,-480.0,0.00022207,2]
[388470185,1759181445229,-480.0,0.00022207,2]
[388470186,1759181445238,-480.0,0.00022207,2]
[388470187,1759181445247,-480.0,0.00022207,2]
[388470188,1759181445256,-480.0,0.00022207,2]
[388470189,1759181445266,-480.0,0.00022207,2]
[388470190,1759181445275,-480.0,0.00022207,2]
[388470191,1759181445285,-480.0,0.00022207,2]
[388470192,1759181445295,-258.50261796,0.00022207,2]
[388470193,1759181445304,-480.0,0.00022207,2]
[388470194,1759181445314,-480.0,0.00022207,2]
[388470195,1759181445323,-480.0,0.00022207,2]
[388470196,1759181445332,-588.22,0.00022207,2]
[388470197,1759181445341,-500.0,0.00022207,2]
[388470198,1759181445351,-480.0,0.00022207,2]
[388470199,1759181445360,-480.0,0.00022207,2]
[388470200,1759181445369,-655.64,0.00022207,2]
[388470201,1759181445378,-507.95133085,0.00022207,2]
[388470202,1759181445387,-480.0,0.00022207,2]
[388470203,1759181445397,-480.0,0.00022207,2]
[388470204,1759181445407,-480.0,0.00022207,2]
[388470205,1759181445416,-480.0,0.00022207,2]
[388470206,1759181445425,-480.0,0.00022207,2]
[388470207,1759181445434,-542.65,0.00022207,2]
[388470208,1759181445444,-480.0,0.00022207,2]
[388470209,1759181445453,-480.0,0.00022207,2]
[388470210,1759181445463,-226.28723571,0.00022207,2]
[388470211,1759181445472,-480.0,0.00022207,2]
[388470212,1759181445482,-480.0,0.00022207,2]
[388470213,1759181445491,-480.0,0.00022207,2]
[388470214,1759181445501,-480.0,0.00022207,2]
[388470215,1759181445510,-480.0,0.00022207,2]
[388470217,1759181445519,-480.0,0.00022207,2]
[388470219,1759181445528,-480.0,0.00022207,2]
[388470221,1759181445539,-480.0,0.00022207,2]
[388470223,1759181445548,-480.0,0.00022207,2]
[388470224,1759181445557,-480.0,0.00022207,2]
[388470225,1759181445567,-480.0,0.00022207,2]
[388470227,1759181445577,-480.0,0.00022207,2]
[388470229,1759181445586,-480.0,0.00022207,2]
[388470231,1759181445595,-1331.61371035,0.00022218,2]
[388470233,1759181445604,-168.0,0.00022267,2]
[388470235,1759181445614,-168.0,0.00022271,2]
[388470236,1759181445623,-500.0,0.00022273,2]
[388470237,1759181445633,-500.0,0.00022273,2]
[388470238,1759181445643,-495.17613065,0.00022273,2]
[388470239,1759181445685,-168.0,0.00022298,2]
[388470240,1759181445695,-4153.15,0.000223,2]
[388470242,1759181445705,-1286.77,0.00022305,2]
[388470243,1759181445715,-480.0,0.00022307,2]
[388470244,1759181445724,-480.0,0.00022307,2]
[388470245,1759181445733,-480.0,0.00022307,2]
[388470246,1759181445743,-480.0,0.00022307,2]
[388470247,1759181445752,-862.92,0.00022307,2]
[388470249,1759181445762,-1150.52,0.00022307,2]
[388470250,1759181445771,-480.0,0.00022307,2]
[388470251,1759181445781,-480.0,0.00022307,2]
[388470252,1759181445791,-480.0,0.00022307,2]
[388470253,1759181445800,-480.0,0.00022307,2]
[388470254,1759181445810,-480.0,0.00022307,2]
[388470255,1759181445820,-168.0,0.0002238,2]
[388470256,1759181445829,-480.0,0.00022468,2]
[388470257,1759181445839,-480.0,0.00022468,2]
[388470258,1759181445849,-293.20466806,0.00022469,2]
[388470259,1759181445858,-480.0,0.00022469,2]
[388470260,1759181445868,-480.0,0.00022469,2]
[388470262,1759181445878,-480.0,0.00022469,2]
[388470263,1759181445888,-831.32,0.00022469,2]
[388470265,1759181445898,-480.0,0.00022469,2]
[388470266,1759181445907,-1633.91,0.00022469,2]
[388470267,1759181445917,-1635.28,0.00022469,2]
[388470268,1759181445926,-480.0,0.00022469,2]
[388470269,1759181445935,-574.17,0.00022469,2]
[388470270,1759181445945,-1196.87,0.00022469,2]
[388470271,1759181445954,-507.59,0.00022469,2]
[388470272,1759181445963,-480.0,0.00022469,2]
[388470273,1759181445973,-962.28,0.00022469,2]
[388470274,1759181445982,-480.0,0.0002247,2]
[388470275,1759181445992,-480.0,0.0002247,2]
[388470276,1759181446006,-480.0,0.0002247,2]
[388470277,1759181446016,-529.7,0.0002247,2]
[388470278,1759181446025,-480.0,0.0002247,2]
[388470279,1759181446035,-876.08,0.0002247,2]
[388470280,1759181446044,-480.0,0.0002247,2]
[388470281,1759181446053,-1004.12,0.0002247,2]
[388470282,1759181446063,-480.0,0.0002247,2]
[388470283,1759181446072,-480.0,0.0002247,2]
[388470284,1759181446081,-480.0,0.0002247,2]
[388470285,1759181446090,-714.62,0.0002247,2]
[388470286,1759181446100,-165.08682105,0.0002247,2]
[388470287,1759181446110,-480.0,0.0002247,2]
[388470288,1759181446120,-641.83,0.0002247,2]
[388470289,1759181446129,-480.0,0.0002247,2]
[388470290,1759181446139,-1006.19,0.0002247,2]
[388470291,1759181446148,-480.0,0.0002247,2]
[388470292,1759181446157,-480.0,0.0002247,2]
[388470293,1759181446167,-480.0,0.0002247,2]
[388470294,1759181446176,-480.0,0.0002247,2]
[388470295,1759181446185,-480.0,0.0002247,2]
[388470296,1759181446194,-480.0,0.0002247,2]
[388470297,1759181446203,-1053.07,0.0002247,2]
[388470298,1759181446212,-4093.25,0.0002247,2]
[388470299,1759181446221,-858.08,0.0002247,2]
[388470300,1759181446230,-1049.63,0.0002247,2]
[388470301,1759181446240,-494.13,0.0002247,2]
[388470302,1759181446249,-1531.77,0.0002247,2]
[388470303,1759181446258,-614.45,0.0002247,2]
[388470304,1759181446268,-536.88,0.0002247,2]
[388470306,1759181446277,-2676.94,0.0002247,2]
[388470307,1759181446287,-480.0,0.0002248,2]
[388470308,1759181446296,-562.52,0.0002248,2]
[388470309,1759181446305,-480.0,0.0002248,2]
[388470310,1759181446315,-480.0,0.0002248,2]
[388470311,1759181446324,-480.0,0.0002248,2]
[388470312,1759181446334,-615.68,0.0002248,2]